Workbook

Sheet 1040EZ answer key
A1: Instructions: | B1: Blue cells indicate places where changes can be made. | F1: Other cells are protected so formulas will not be erased.
B2: To add or delete rows, click on the appropriate button below. Macros must be enabled for the buttons to work.
B3: Clicking the buttons adds rows to the bottom of the list, and deletes them from the bottom of the list.
B4: In order for the Form 1040EZ calculator and W2 printer tabs to work properly, last names must be listed in alphabetical order.
B5: Once you've set names and gross incomes, copy their completed blue entries to Tax_W2.xls for use in preparing W-2 forms.
A7: withholding rate | B7: 0.07
A8: interest | B8: 0.01 | H8: 10000 | I8: 35000 | J8: ($99,999 max)
A9: line 8a credit | B9: n
A10: standard deduction | B10: 6350 | E10: Adjusted | F10: Standard | G10: Taxable | I10: Earned
C11: Gross Income | D11: Interest | E11: Gross | F11: Deduction | G11: Income | H11: Withholding | I11: Income Credit | J11: Total Paid | K11: Tax | L11: Refund | M11: Amount Due
A12: Last name | B12: First name | C12: Line 1 | D12: Line 2 | E12: Line 4 | F12: Line 5 | G12: Line 6 | H12: Line 7 | I12: Line 8a | J12: Line 9 | K12: Line 10 | L12: Line 13a | M12: Line 14 | N12: Adjusted
A13: 1 | B13: Student | C13: 13164 | D13: =C13*ROUND($B$8,4) -> 131.64 | E13: =+C13+D13 -> 13295.64 | F13: =$B$10 -> 6350 | G13: =IF(E13-F13>0,E13-F13,0) -> 6945.64 | H13: =ROUND(C13*ROUND($B$7,4),2) -> 921.48 | I13: =IF(AND(UPPER($B$9="Y"), C13<13660),IF(K13<=506,K13,506),0) -> 0 | J13: =H13+I13 -> 921.48 | K13: =ROUND(IF(G13>0,VLOOKUP(N13,TaxTable,3)+(VLOOKUP(N13,TaxTable,2)*(N13-VLOOKUP(N13,TaxTable,1))),0),0) -> 693 | L13: =IF(J13>K13,J13-K13," ") -> 228.48 | M13: =IF(K13>J13,K13-J13," ") ->  | N13: =TRUNC(G13,-2)+IF(MOD(G13,100)>50,75,25) -> 6925
A14: 2 | B14: Student | C14: 25083 | D14: =C14*ROUND($B$8,4) -> 250.83 | E14: 25333.83 | F14: 6350 | G14: =IF(E14-F14>0,E14-F14,0) -> 18983.83 | H14: =ROUND(C14*ROUND($B$7,4),2) -> 1755.81 | I14: =IF(AND(UPPER($B$9="Y"), C14<13660),IF(K14<=506,K14,506),0) -> 0 | J14: =H14+I14 -> 1755.81 | K14: =ROUND(IF(G14>0,VLOOKUP(N14,TaxTable,3)+(VLOOKUP(N14,TaxTable,2)*(N14-VLOOKUP(N14,TaxTable,1))),0),0) -> 2380 | L14: =IF(J14>K14,J14-K14," ") ->  | M14: =IF(K14>J14,K14-J14," ") -> 624.19 | N14: =TRUNC(G14,-2)+IF(MOD(G14,100)>50,75,25) -> 18975
A15: 3 | B15: Student | C15: 24152 | D15: =C15*ROUND($B$8,4) -> 241.52 | E15: 24393.52 | F15: 6350 | G15: =IF(E15-F15>0,E15-F15,0) -> 18043.52 | H15: =ROUND(C15*ROUND($B$7,4),2) -> 1690.64 | I15: 0 | J15: =H15+I15 -> 1690.64 | K15: =ROUND(IF(G15>0,VLOOKUP(N15,TaxTable,3)+(VLOOKUP(N15,TaxTable,2)*(N15-VLOOKUP(N15,TaxTable,1))),0),0) -> 2238 | L15: =IF(J15>K15,J15-K15," ") ->  | M15: =IF(K15>J15,K15-J15," ") -> 547.36 | N15: 18025
A16: 4 | B16: Student | C16: 15894 | D16: 158.94 | E16: 16052.94 | F16: 6350 | G16: 9702.94 | H16: 1112.58 | I16: 0 | J16: 1112.58 | K16: =ROUND(IF(G16>0,VLOOKUP(N16,TaxTable,3)+(VLOOKUP(N16,TaxTable,2)*(N16-VLOOKUP(N16,TaxTable,1))),0),0) -> 993 | L16: 119.58 | N16: 9725
A17: 5 | B17: Student | C17: 17722 | D17: 177.22 | E17: 17899.22 | F17: 6350 | G17: 11549.22 | H17: 1240.54 | I17: 0 | J17: 1240.54 | K17: 1263 | M17: 22.46 | N17: 11525
A18: 6 | B18: Student | C18: 32809 | D18: 328.09 | E18: 33137.09 | F18: 6350 | G18: 26787.09 | H18: 2296.63 | I18: 0 | J18: 2296.63 | K18: 3550 | M18: 1253.37 | N18: 26775
A19: 7 | B19: Student | C19: 33389 | D19: 333.89 | E19: 33722.89 | F19: 6350 | G19: 27372.89 | H19: 2337.23 | I19: 0 | J19: 2337.23 | K19: 3640 | M19: 1302.77 | N19: 27375
A20: 8 | B20: Student | C20: 25528 | D20: 255.28 | E20: 25783.28 | F20: 6350 | G20: 19433.28 | H20: 1786.96 | I20: 0 | J20: 1786.96 | K20: 2448 | M20: 661.04 | N20: 19425
A21: 9 | B21: Student | C21: 10882 | D21: 108.82 | E21: 10990.82 | F21: 6350 | G21: 4640.82 | H21: 761.74 | I21: 0 | J21: 761.74 | K21: 463 | L21: 298.74 | N21: 4625
A22: 10 | B22: Student | C22: 11817 | D22: 118.17 | E22: =+C22+D22 -> 11935.17 | F22: 6350 | G22: 5585.17 | H22: 827.19 | I22: 0 | J22: 827.19 | K22: 558 | L22: 269.19 | N22: 5575
A23: 11 | B23: Student | C23: 23133 | D23: 231.33 | E23: 23364.33 | F23: 6350 | G23: 17014.33 | H23: 1619.31 | I23: 0 | J23: 1619.31 | K23: 2088 | M23: 468.69 | N23: 17025
A24: 12 | B24: Student | C24: 30113 | D24: 301.13 | E24: 30414.13 | F24: 6350 | G24: 24064.13 | H24: 2107.91 | I24: 0 | J24: 2107.91 | K24: 3145 | M24: 1037.09 | N24: 24075
A25: 13 | B25: Student | C25: 25491 | D25: 254.91 | E25: 25745.91 | F25: 6350 | G25: 19395.91 | H25: 1784.37 | I25: 0 | J25: 1784.37 | K25: 2440 | M25: 655.63 | N25: 19375
A26: 14 | B26: Student | C26: 30840 | D26: 308.4 | E26: 31148.4 | F26: 6350 | G26: 24798.4 | H26: 2158.8 | I26: 0 | J26: 2158.8 | K26: 3250 | M26: 1091.2 | N26: 24775
A27: 15 | B27: Student | C27: 21465 | D27: 214.65 | E27: 21679.65 | F27: 6350 | G27: 15329.65 | H27: 1502.55 | I27: 0 | J27: 1502.55 | K27: 1833 | M27: 330.45 | N27: 15325
A28: 16 | B28: Student | C28: 14259 | D28: 142.59 | E28: 14401.59 | F28: 6350 | G28: 8051.59 | H28: 998.13 | I28: 0 | J28: 998.13 | K28: 808 | L28: 190.13 | N28: 8075
A29: 17 | B29: Student | C29: 17625 | D29: 176.25 | E29: 17801.25 | F29: 6350 | G29: 11451.25 | H29: 1233.75 | I29: 0 | J29: 1233.75 | K29: 1255 | M29: 21.25 | N29: 11475
A30: 18 | B30: Student | C30: 31646 | D30: 316.46 | E30: 31962.46 | F30: 6350 | G30: 25612.46 | H30: 2215.22 | I30: 0 | J30: 2215.22 | K30: 3378 | M30: 1162.78 | N30: 25625
A31: 19 | B31: Student | C31: 14978 | D31: 149.78 | E31: 15127.78 | F31: 6350 | G31: 8777.78 | H31: 1048.46 | I31: 0 | J31: 1048.46 | K31: 878 | L31: 170.46 | N31: 8775
A32: 20 | B32: Student | C32: 29170 | D32: 291.7 | E32: =+C32+D32 -> 29461.7 | F32: 6350 | G32: 23111.7 | H32: 2041.9 | I32: 0 | J32: 2041.9 | K32: 3003 | M32: 961.1 | N32: 23125
A33: 21 | B33: Student | C33: 31107 | D33: 311.07 | E33: 31418.07 | F33: 6350 | G33: 25068.07 | H33: 2177.49 | I33: 0 | J33: 2177.49 | K33: 3295 | M33: 1117.51 | N33: 25075
A34: 22 | B34: Student | C34: 17355 | D34: 173.55 | E34: 17528.55 | F34: 6350 | G34: 11178.55 | H34: 1214.85 | I34: 0 | J34: 1214.85 | K34: 1210 | L34: 4.85 | N34: 11175
A35: 23 | B35: Student | C35: 25882 | D35: 258.82 | E35: 26140.82 | F35: 6350 | G35: 19790.82 | H35: 1811.74 | I35: 0 | J35: 1811.74 | K35: 2500 | M35: 688.26 | N35: 19775
A36: 24 | B36: Student | C36: 28854 | D36: 288.54 | E36: 29142.54 | F36: 6350 | G36: 22792.54 | H36: 2019.78 | I36: 0 | J36: 2019.78 | K36: 2950 | M36: 930.22 | N36: 22775
A37: 25 | B37: Student | C37: 33494 | D37: 334.94 | E37: 33828.94 | F37: 6350 | G37: 27478.94 | H37: 2344.58 | I37: 0 | J37: 2344.58 | K37: 3655 | M37: 1310.42 | N37: 27475
A38: 26 | B38: Student | C38: 28434 | D38: 284.34 | E38: 28718.34 | F38: 6350 | G38: 22368.34 | H38: 1990.38 | I38: 0 | J38: 1990.38 | K38: 2890 | M38: 899.62 | N38: 22375
A39: 27 | B39: Student | C39: 20959 | D39: 209.59 | E39: 21168.59 | F39: 6350 | G39: 14818.59 | H39: 1467.13 | I39: 0 | J39: 1467.13 | K39: 1758 | M39: 290.87 | N39: 14825
A40: 28 | B40: Student | C40: 29406 | D40: 294.06 | E40: 29700.06 | F40: 6350 | G40: 23350.06 | H40: 2058.42 | I40: 0 | J40: 2058.42 | K40: 3040 | M40: 981.58 | N40: 23375
A41: 29 | B41: Student | C41: 11516 | D41: 115.16 | E41: 11631.16 | F41: 6350 | G41: 5281.16 | H41: 806.12 | I41: 0 | J41: 806.12 | K41: 528 | L41: 278.12 | N41: 5275
A42: 30 | B42: Student | C42: 19046 | D42: 190.46 | E42: =+C42+D42 -> 19236.46 | F42: 6350 | G42: 12886.46 | H42: 1333.22 | I42: 0 | J42: 1333.22 | K42: 1465 | M42: 131.78 | N42: 12875
A43: 31 | B43: Student | C43: 21601 | D43: 216.01 | E43: 21817.01 | F43: 6350 | G43: 15467.01 | H43: 1512.07 | I43: 0 | J43: 1512.07 | K43: 1855 | M43: 342.93 | N43: 15475
A44: 32 | B44: Student | C44: 20732 | D44: 207.32 | E44: 20939.32 | F44: 6350 | G44: 14589.32 | H44: 1451.24 | I44: 0 | J44: 1451.24 | K44: 1720 | M44: 268.76 | N44: 14575
A45: 33 | B45: Student | C45: 20236 | D45: 202.36 | E45: 20438.36 | F45: 6350 | G45: 14088.36 | H45: 1416.52 | I45: 0 | J45: 1416.52 | K45: 1645 | M45: 228.48 | N45: 14075
A46: 34 | B46: Student | C46: 31713 | D46: 317.13 | E46: 32030.13 | F46: 6350 | G46: 25680.13 | H46: 2219.91 | I46: 0 | J46: 2219.91 | K46: 3385 | M46: 1165.09 | N46: 25675
A47: 35 | B47: Student | C47: 18727 | D47: 187.27 | E47: 18914.27 | F47: 6350 | G47: 12564.27 | H47: 1310.89 | I47: 0 | J47: 1310.89 | K47: 1420 | M47: 109.11 | N47: 12575
A48: 36 | B48: Student | C48: 32344 | D48: 323.44 | E48: 32667.44 | F48: 6350 | G48: 26317.44 | H48: 2264.08 | I48: 0 | J48: 2264.08 | K48: 3483 | M48: 1218.92 | N48: 26325
A49: 37 | B49: Student | C49: 32892 | D49: 328.92 | E49: 33220.92 | F49: 6350 | G49: 26870.92 | H49: 2302.44 | I49: 0 | J49: 2302.44 | K49: 3565 | M49: 1262.56 | N49: 26875
A50: 38 | B50: Student | C50: 31239 | D50: 312.39 | E50: 31551.39 | F50: 6350 | G50: 25201.39 | H50: 2186.73 | I50: 0 | J50: 2186.73 | K50: 3318 | M50: 1131.27 | N50: 25225
A51: 39 | B51: Student | C51: 12530 | D51: 125.3 | E51: 12655.3 | F51: 6350 | G51: 6305.3 | H51: 877.1 | I51: 0 | J51: 877.1 | K51: 633 | L51: 244.1 | N51: 6325
A52: 40 | B52: Student | C52: 30977 | D52: 309.77 | E52: =+C52+D52 -> 31286.77 | F52: 6350 | G52: =IF(E52-F52>0,E52-F52,0) -> 24936.77 | H52: 2168.39 | I52: 0 | J52: 2168.39 | K52: 3273 | M52: 1104.61 | N52: =TRUNC(G52,-2)+IF(MOD(G52,100)>50,75,25) -> 24925

Sheet W2 calculator
A1: Instructions: | B1: The contents of cells with blue backgrounds | E1: can be changed. Other cells are protected.
B2: To add or delete rows, use the buttons on the 1040EZ answer key tab.
A4: state tax rate | B4: 0.04
A5: FICA rate | B5: 0.062
A6: Medicare rate | B6: 0.0145
A7: SDI rate | B7: 0.006
I8: Net Income
A9: Last name | B9: First name | C9: Gross | D9: FICA | E9: Medicare | F9: Fed Tax | G9: State Tax | H9: SDI | I9: Yearly | J9: Monthly | K9: Weekly | L9: Daily
A10: ='1040EZ answer key'!A13 -> 1 | B10: ='1040EZ answer key'!B13 -> Student | C10: ='1040EZ answer key'!C13 -> 13164 | D10: =$C10*ROUND($B$5,4) -> 816.168 | E10: =$B$6*ROUND(C10,4) -> 190.878 | F10: =C10*'1040EZ answer key'!$B$7 -> 921.48 | G10: =$C10*ROUND($B$4,4) -> 526.56 | H10: =$C10*ROUND($B$7,4) -> 78.984 | I10: =C10-SUM(D10:H10) -> 10629.93 | J10: =I10/12 -> 885.8275 | K10: =J10/4 -> 221.456875 | L10: =K10/7 -> 31.63669643
A11: ='1040EZ answer key'!A14 -> 2 | B11: ='1040EZ answer key'!B14 -> Student | C11: ='1040EZ answer key'!C14 -> 25083 | D11: =$C11*ROUND($B$5,4) -> 1555.146 | E11: =$B$6*ROUND(C11,4) -> 363.7035 | F11: =C11*'1040EZ answer key'!$B$7 -> 1755.81 | G11: =$C11*ROUND($B$4,4) -> 1003.32 | H11: =$C11*ROUND($B$7,4) -> 150.498 | I11: 20254.5225 | J11: =I11/12 -> 1687.876875 | K11: 421.9692187 | L11: =K11/7 -> 60.28131696
A12: ='1040EZ answer key'!A15 -> 3 | B12: ='1040EZ answer key'!B15 -> Student | C12: ='1040EZ answer key'!C15 -> 24152 | D12: =$C12*ROUND($B$5,4) -> 1497.424 | E12: =$B$6*ROUND(C12,4) -> 350.204 | F12: =C12*'1040EZ answer key'!$B$7 -> 1690.64 | G12: =$C12*ROUND($B$4,4) -> 966.08 | H12: =$C12*ROUND($B$7,4) -> 144.912 | I12: 19502.74 | J12: =I12/12 -> 1625.228333 | K12: 406.3070833 | L12: =K12/7 -> 58.04386905
A13: ='1040EZ answer key'!A16 -> 4 | B13: ='1040EZ answer key'!B16 -> Student | C13: ='1040EZ answer key'!C16 -> 15894 | D13: 985.428 | E13: 230.463 | F13: =C13*'1040EZ answer key'!$B$7 -> 1112.58 | G13: 635.76 | H13: 95.364 | I13: 12834.405 | J13: 1069.53375 | K13: 267.3834375 | L13: 38.19763393
A14: ='1040EZ answer key'!A17 -> 5 | B14: ='1040EZ answer key'!B17 -> Student | C14: ='1040EZ answer key'!C17 -> 17722 | D14: 1098.764 | E14: 256.969 | F14: =C14*'1040EZ answer key'!$B$7 -> 1240.54 | G14: 708.88 | H14: 106.332 | I14: 14310.515 | J14: =I14/12 -> 1192.542917 | K14: 298.1357292 | L14: 42.59081845
A15: ='1040EZ answer key'!A18 -> 6 | B15: ='1040EZ answer key'!B18 -> Student | C15: ='1040EZ answer key'!C18 -> 32809 | D15: 2034.158 | E15: 475.7305 | F15: =C15*'1040EZ answer key'!$B$7 -> 2296.63 | G15: 1312.36 | H15: 196.854 | I15: 26493.2675 | J15: 2207.772292 | K15: 551.9430729 | L15: 78.84901042
A16: ='1040EZ answer key'!A19 -> 7 | B16: ='1040EZ answer key'!B19 -> Student | C16: ='1040EZ answer key'!C19 -> 33389 | D16: 2070.118 | E16: 484.1405 | F16: =C16*'1040EZ answer key'!$B$7 -> 2337.23 | G16: 1335.56 | H16: 200.334 | I16: 26961.6175 | J16: =I16/12 -> 2246.801458 | K16: 561.7003646 | L16: 80.24290923
A17: ='1040EZ answer key'!A20 -> 8 | B17: ='1040EZ answer key'!B20 -> Student | C17: ='1040EZ answer key'!C20 -> 25528 | D17: 1582.736 | E17: 370.156 | F17: =C17*'1040EZ answer key'!$B$7 -> 1786.96 | G17: 1021.12 | H17: 153.168 | I17: 20613.86 | J17: 1717.821667 | K17: 429.4554167 | L17: 61.35077381
A18: ='1040EZ answer key'!A21 -> 9 | B18: ='1040EZ answer key'!B21 -> Student | C18: ='1040EZ answer key'!C21 -> 10882 | D18: 674.684 | E18: 157.789 | F18: =C18*'1040EZ answer key'!$B$7 -> 761.74 | G18: 435.28 | H18: 65.292 | I18: 8787.215 | J18: =I18/12 -> 732.2679167 | K18: 183.0669792 | L18: 26.1524256
A19: ='1040EZ answer key'!A22 -> 10 | B19: ='1040EZ answer key'!B22 -> Student | C19: ='1040EZ answer key'!C22 -> 11817 | D19: 732.654 | E19: 171.3465 | F19: =C19*'1040EZ answer key'!$B$7 -> 827.19 | G19: 472.68 | H19: 70.902 | I19: 9542.2275 | J19: 795.185625 | K19: 198.7964063 | L19: 28.39948661
A20: ='1040EZ answer key'!A23 -> 11 | B20: ='1040EZ answer key'!B23 -> Student | C20: ='1040EZ answer key'!C23 -> 23133 | D20: 1434.246 | E20: 335.4285 | F20: =C20*'1040EZ answer key'!$B$7 -> 1619.31 | G20: 925.32 | H20: 138.798 | I20: 18679.8975 | J20: =I20/12 -> 1556.658125 | K20: 389.1645312 | L20: 55.59493304
A21: ='1040EZ answer key'!A24 -> 12 | B21: ='1040EZ answer key'!B24 -> Student | C21: ='1040EZ answer key'!C24 -> 30113 | D21: 1867.006 | E21: 436.6385 | F21: =C21*'1040EZ answer key'!$B$7 -> 2107.91 | G21: 1204.52 | H21: 180.678 | I21: 24316.2475 | J21: 2026.353958 | K21: 506.5884896 | L21: 72.36978423
A22: ='1040EZ answer key'!A25 -> 13 | B22: ='1040EZ answer key'!B25 -> Student | C22: ='1040EZ answer key'!C25 -> 25491 | D22: 1580.442 | E22: 369.6195 | F22: =C22*'1040EZ answer key'!$B$7 -> 1784.37 | G22: 1019.64 | H22: 152.946 | I22: 20583.9825 | J22: =I22/12 -> 1715.331875 | K22: 428.8329687 | L22: 61.26185268
A23: ='1040EZ answer key'!A26 -> 14 | B23: ='1040EZ answer key'!B26 -> Student | C23: ='1040EZ answer key'!C26 -> 30840 | D23: 1912.08 | E23: 447.18 | F23: =C23*'1040EZ answer key'!$B$7 -> 2158.8 | G23: 1233.6 | H23: 185.04 | I23: 24903.3 | J23: 2075.275 | K23: 518.81875 | L23: 74.11696429
A24: ='1040EZ answer key'!A27 -> 15 | B24: ='1040EZ answer key'!B27 -> Student | C24: ='1040EZ answer key'!C27 -> 21465 | D24: 1330.83 | E24: 311.2425 | F24: =C24*'1040EZ answer key'!$B$7 -> 1502.55 | G24: 858.6 | H24: 128.79 | I24: 17332.9875 | J24: =I24/12 -> 1444.415625 | K24: 361.1039062 | L24: 51.58627232
A25: ='1040EZ answer key'!A28 -> 16 | B25: ='1040EZ answer key'!B28 -> Student | C25: ='1040EZ answer key'!C28 -> 14259 | D25: 884.058 | E25: 206.7555 | F25: =C25*'1040EZ answer key'!$B$7 -> 998.13 | G25: 570.36 | H25: 85.554 | I25: 11514.1425 | J25: 959.511875 | K25: 239.8779688 | L25: 34.26828125
A26: ='1040EZ answer key'!A29 -> 17 | B26: ='1040EZ answer key'!B29 -> Student | C26: ='1040EZ answer key'!C29 -> 17625 | D26: 1092.75 | E26: 255.5625 | F26: =C26*'1040EZ answer key'!$B$7 -> 1233.75 | G26: 705 | H26: 105.75 | I26: 14232.1875 | J26: =I26/12 -> 1186.015625 | K26: 296.5039062 | L26: 42.35770089
A27: ='1040EZ answer key'!A30 -> 18 | B27: ='1040EZ answer key'!B30 -> Student | C27: ='1040EZ answer key'!C30 -> 31646 | D27: 1962.052 | E27: 458.867 | F27: =C27*'1040EZ answer key'!$B$7 -> 2215.22 | G27: 1265.84 | H27: 189.876 | I27: 25554.145 | J27: 2129.512083 | K27: 532.3780208 | L27: 76.05400298
A28: ='1040EZ answer key'!A31 -> 19 | B28: ='1040EZ answer key'!B31 -> Student | C28: ='1040EZ answer key'!C31 -> 14978 | D28: 928.636 | E28: 217.181 | F28: =C28*'1040EZ answer key'!$B$7 -> 1048.46 | G28: 599.12 | H28: 89.868 | I28: 12094.735 | J28: =I28/12 -> 1007.894583 | K28: 251.9736458 | L28: 35.99623512
A29: ='1040EZ answer key'!A32 -> 20 | B29: ='1040EZ answer key'!B32 -> Student | C29: ='1040EZ answer key'!C32 -> 29170 | D29: 1808.54 | E29: 422.965 | F29: =C29*'1040EZ answer key'!$B$7 -> 2041.9 | G29: 1166.8 | H29: 175.02 | I29: 23554.775 | J29: 1962.897917 | K29: 490.7244792 | L29: 70.10349702
A30: ='1040EZ answer key'!A33 -> 21 | B30: ='1040EZ answer key'!B33 -> Student | C30: ='1040EZ answer key'!C33 -> 31107 | D30: 1928.634 | E30: 451.0515 | F30: =C30*'1040EZ answer key'!$B$7 -> 2177.49 | G30: 1244.28 | H30: 186.642 | I30: 25118.9025 | J30: =I30/12 -> 2093.241875 | K30: 523.3104688 | L30: 74.75863839
A31: ='1040EZ answer key'!A34 -> 22 | B31: ='1040EZ answer key'!B34 -> Student | C31: ='1040EZ answer key'!C34 -> 17355 | D31: 1076.01 | E31: 251.6475 | F31: =C31*'1040EZ answer key'!$B$7 -> 1214.85 | G31: 694.2 | H31: 104.13 | I31: 14014.1625 | J31: 1167.846875 | K31: 291.9617187 | L31: 41.70881696
A32: ='1040EZ answer key'!A35 -> 23 | B32: ='1040EZ answer key'!B35 -> Student | C32: ='1040EZ answer key'!C35 -> 25882 | D32: 1604.684 | E32: 375.289 | F32: =C32*'1040EZ answer key'!$B$7 -> 1811.74 | G32: 1035.28 | H32: 155.292 | I32: 20899.715 | J32: =I32/12 -> 1741.642917 | K32: 435.4107292 | L32: 62.20153274
A33: ='1040EZ answer key'!A36 -> 24 | B33: ='1040EZ answer key'!B36 -> Student | C33: ='1040EZ answer key'!C36 -> 28854 | D33: 1788.948 | E33: 418.383 | F33: =C33*'1040EZ answer key'!$B$7 -> 2019.78 | G33: 1154.16 | H33: 173.124 | I33: 23299.605 | J33: 1941.63375 | K33: 485.4084375 | L33: 69.3440625
A34: ='1040EZ answer key'!A37 -> 25 | B34: ='1040EZ answer key'!B37 -> Student | C34: ='1040EZ answer key'!C37 -> 33494 | D34: 2076.628 | E34: 485.663 | F34: =C34*'1040EZ answer key'!$B$7 -> 2344.58 | G34: 1339.76 | H34: 200.964 | I34: 27046.405 | J34: =I34/12 -> 2253.867083 | K34: 563.4667708 | L34: 80.49525298
A35: ='1040EZ answer key'!A38 -> 26 | B35: ='1040EZ answer key'!B38 -> Student | C35: ='1040EZ answer key'!C38 -> 28434 | D35: 1762.908 | E35: 412.293 | F35: =C35*'1040EZ answer key'!$B$7 -> 1990.38 | G35: 1137.36 | H35: 170.604 | I35: 22960.455 | J35: 1913.37125 | K35: 478.3428125 | L35: 68.3346875
A36: ='1040EZ answer key'!A39 -> 27 | B36: ='1040EZ answer key'!B39 -> Student | C36: ='1040EZ answer key'!C39 -> 20959 | D36: 1299.458 | E36: 303.9055 | F36: =C36*'1040EZ answer key'!$B$7 -> 1467.13 | G36: 838.36 | H36: 125.754 | I36: 16924.3925 | J36: =I36/12 -> 1410.366042 | K36: 352.5915104 | L36: 50.37021577
A37: ='1040EZ answer key'!A40 -> 28 | B37: ='1040EZ answer key'!B40 -> Student | C37: ='1040EZ answer key'!C40 -> 29406 | D37: 1823.172 | E37: 426.387 | F37: =C37*'1040EZ answer key'!$B$7 -> 2058.42 | G37: 1176.24 | H37: 176.436 | I37: 23745.345 | J37: 1978.77875 | K37: 494.6946875 | L37: 70.67066964
A38: ='1040EZ answer key'!A41 -> 29 | B38: ='1040EZ answer key'!B41 -> Student | C38: ='1040EZ answer key'!C41 -> 11516 | D38: 713.992 | E38: 166.982 | F38: =C38*'1040EZ answer key'!$B$7 -> 806.12 | G38: 460.64 | H38: 69.096 | I38: 9299.17 | J38: =I38/12 -> 774.9308333 | K38: 193.7327083 | L38: 27.67610119
A39: ='1040EZ answer key'!A42 -> 30 | B39: ='1040EZ answer key'!B42 -> Student | C39: ='1040EZ answer key'!C42 -> 19046 | D39: 1180.852 | E39: 276.167 | F39: =C39*'1040EZ answer key'!$B$7 -> 1333.22 | G39: 761.84 | H39: 114.276 | I39: 15379.645 | J39: 1281.637083 | K39: 320.4092708 | L39: 45.77275298
A40: ='1040EZ answer key'!A43 -> 31 | B40: ='1040EZ answer key'!B43 -> Student | C40: ='1040EZ answer key'!C43 -> 21601 | D40: 1339.262 | E40: 313.2145 | F40: =C40*'1040EZ answer key'!$B$7 -> 1512.07 | G40: 864.04 | H40: 129.606 | I40: 17442.8075 | J40: =I40/12 -> 1453.567292 | K40: 363.3918229 | L40: 51.91311756
A41: ='1040EZ answer key'!A44 -> 32 | B41: ='1040EZ answer key'!B44 -> Student | C41: ='1040EZ answer key'!C44 -> 20732 | D41: 1285.384 | E41: 300.614 | F41: =C41*'1040EZ answer key'!$B$7 -> 1451.24 | G41: 829.28 | H41: 124.392 | I41: 16741.09 | J41: 1395.090833 | K41: 348.7727083 | L41: 49.82467262
A42: ='1040EZ answer key'!A45 -> 33 | B42: ='1040EZ answer key'!B45 -> Student | C42: ='1040EZ answer key'!C45 -> 20236 | D42: 1254.632 | E42: 293.422 | F42: =C42*'1040EZ answer key'!$B$7 -> 1416.52 | G42: 809.44 | H42: 121.416 | I42: 16340.57 | J42: =I42/12 -> 1361.714167 | K42: 340.4285417 | L42: 48.63264881
A43: ='1040EZ answer key'!A46 -> 34 | B43: ='1040EZ answer key'!B46 -> Student | C43: ='1040EZ answer key'!C46 -> 31713 | D43: 1966.206 | E43: 459.8385 | F43: =C43*'1040EZ answer key'!$B$7 -> 2219.91 | G43: 1268.52 | H43: 190.278 | I43: 25608.2475 | J43: 2134.020625 | K43: 533.5051562 | L43: 76.21502232
A44: ='1040EZ answer key'!A47 -> 35 | B44: ='1040EZ answer key'!B47 -> Student | C44: ='1040EZ answer key'!C47 -> 18727 | D44: 1161.074 | E44: 271.5415 | F44: =C44*'1040EZ answer key'!$B$7 -> 1310.89 | G44: 749.08 | H44: 112.362 | I44: 15122.0525 | J44: =I44/12 -> 1260.171042 | K44: 315.0427604 | L44: 45.00610863
A45: ='1040EZ answer key'!A48 -> 36 | B45: ='1040EZ answer key'!B48 -> Student | C45: ='1040EZ answer key'!C48 -> 32344 | D45: 2005.328 | E45: 468.988 | F45: =C45*'1040EZ answer key'!$B$7 -> 2264.08 | G45: 1293.76 | H45: 194.064 | I45: 26117.78 | J45: 2176.481667 | K45: 544.1204167 | L45: 77.7314881
A46: ='1040EZ answer key'!A49 -> 37 | B46: ='1040EZ answer key'!B49 -> Student | C46: ='1040EZ answer key'!C49 -> 32892 | D46: 2039.304 | E46: 476.934 | F46: =C46*'1040EZ answer key'!$B$7 -> 2302.44 | G46: 1315.68 | H46: 197.352 | I46: 26560.29 | J46: =I46/12 -> 2213.3575 | K46: 553.339375 | L46: 79.04848214
A47: ='1040EZ answer key'!A50 -> 38 | B47: ='1040EZ answer key'!B50 -> Student | C47: ='1040EZ answer key'!C50 -> 31239 | D47: 1936.818 | E47: 452.9655 | F47: =C47*'1040EZ answer key'!$B$7 -> 2186.73 | G47: 1249.56 | H47: 187.434 | I47: 25225.4925 | J47: 2102.124375 | K47: 525.5310937 | L47: 75.07587054
A48: ='1040EZ answer key'!A51 -> 39 | B48: ='1040EZ answer key'!B51 -> Student | C48: ='1040EZ answer key'!C51 -> 12530 | D48: 776.86 | E48: 181.685 | F48: =C48*'1040EZ answer key'!$B$7 -> 877.1 | G48: 501.2 | H48: 75.18 | I48: 10117.975 | J48: =I48/12 -> 843.1645833 | K48: 210.7911458 | L48: 30.11302083
A49: ='1040EZ answer key'!A52 -> 40 | B49: ='1040EZ answer key'!B52 -> Student | C49: ='1040EZ answer key'!C52 -> 30977 | D49: 1920.574 | E49: 449.1665 | F49: =C49*'1040EZ answer key'!$B$7 -> 2168.39 | G49: 1239.08 | H49: 185.862 | I49: =C49-SUM(D49:H49) -> 25013.9275 | J49: =I49/12 -> 2084.493958 | K49: =J49/4 -> 521.1234896 | L49: =K49/7 -> 74.4462128

Sheet Form 1040 EZ calculator
A1: Select the last name of the student whose answer sheet you want to see
A2: by clicking the blue drop down box, then clicking on the name you want.
B4: =VLOOKUP(B5,Gross,2) -> Student
B5: 1
A7: 1040EZ
A8: Line #
A9: 1 | B9: Total wages from W-2 box 1 | C9: =VLOOKUP($B$5,Gross,3) -> 13164
A10: 2 | B10: Interest income | C10: =VLOOKUP($B$5,DataTable,4) -> 131.64
A11: 3 | B11: Unemployment compensation
A12: 4 | B12: Adjusted gross income | C12: =SUM(C9:C11) -> 13295.64
A13: 5 | B13: Standard deduction | C13: ='1040EZ answer key'!B10 -> 6350
A14: 6 | B14: Taxable income | C14: =IF(C12-C13>0,C12-C13,0) -> 6945.64
A15: 7 | B15: Fed tax withheld (W-2 box 2) | C15: =VLOOKUP($B$5,DataTable,8) -> 921.48
A16: 8a | B16: Earned income credit | C16: =VLOOKUP($B$5,DataTable,9) -> 0
A17: 9 | B17: Total payments | C17: =SUM(C15:C15) -> 921.48
A18: 10 | B18: Tax | C18: =VLOOKUP($B$5,DataTable,11) -> 693
A19: 13a | B19: Refund | C19: =IF(C17>C18,C17-C18," ") -> 228.48
A20: 14 | B20: Amount due | C20: =IF(C18>C17,C18-C17," ") -> 
A22: W-2 Data (withholding totals)
B23: Federal Income Tax | C23: =VLOOKUP($B$5,W2Info,6) -> 921.48
B24: FICA | C24: =VLOOKUP($B$5,W2Info,4) -> 816.168
B25: MediCare | C25: =VLOOKUP($B$5,W2Info,5) -> 190.878
B26: State Income Tax | C26: =VLOOKUP($B$5,W2Info,7) -> 526.56
B27: SDI (State Disability Income) | C27: =VLOOKUP($B$5,W2Info,8) -> 78.984
A29: Net Income (take home pay)
B30: Yearly | C30: =VLOOKUP($B$5,W2Info,9) -> 10629.93
B31: Monthly | C31: =VLOOKUP($B$5,W2Info,10) -> 885.8275
B32: Weekly | C32: =VLOOKUP($B$5,W2Info,11) -> 221.456875
B33: Daily | C33: =VLOOKUP($B$5,W2Info,12) -> 31.63669643

Sheet W2 printer
A1: Instructions: pick a student's last name from the drop down box in A14.
A2: Type your school and class information in boxes A7, A8 and A9.
A4: FOR USE IN CLASS ASSIGNMENTS ONLY
A6: c Employer's Name | B6: 1 Wages, tips, other compensation | C6: 2 Federal Income Tax Withheld
A7: Type Your Class Name Here | B7: =VLOOKUP($A$14,W2Info,3) -> 13164 | C7: =VLOOKUP($A$14,W2Info,6) -> 921.48
A8: Type Your School Name Here | B8: 3 Social Security Wages | C8: 4 Social Security Tax Withheld
A9: City, State Zip | B9: =VLOOKUP($A$14,W2Info,3) -> 13164 | C9: =VLOOKUP($A$14,W2Info,4) -> 816.168
A10: b Student's social security number | B10: 17 State Income Tax Withheld | C10: 19 State Disability Insurance
A11: 123-45-6789 | B11: =VLOOKUP($A$14,W2Info,7) -> 526.56 | C11: =VLOOKUP($A$14,W2Info,8) -> 78.984
A12: d Student's Name
A13: =VLOOKUP(A14,Gross,2) -> Student | B13: This is a simplified version of FORM W2
A14: 1 | B14: OMB No. 1545-0008 BPR125A 10/93
A15: SIMPLIFIED FORM W2 2017 | B15: Wage and Tax Statement
A16: COPY B
B17: Would be filed with the student's Federal Tax Return
B18: Department of the Treasury - IRS
B19: This information would be furnished to the IRS and appropriate State officials
A20: BOX - CONTENT EXPLANATIONS
A22: 1 - This is the total amount of money you "earned" as a student in the class in 2017.
A23: 2 - We would have taken this amount from what you earned, and paid it to the federal government instead of you. The law requires that this be done to make sure that you don't spend what you'll owe in taxes at the end of the year. This process is called WITHHOLDING.
A24: 3 - This is the amount of your overall wages subject to Social Security taxes. The maximum is currently $127,200 per year.
A25: 4 - We would have "withheld" this amount from your paycheck and paid part of it to the federal government to go into the SOCIAL SECURITY TRUST FUND. After paying into this fund for several years, you (and/or your family) are entitled to collect retirement and/or disability benefits when you become eligible. In addition, because you'd pay the remaining withholding in this category to the MEDICARE trust fund, you will become eligible to collect MEDICARE benefits should you ever need them. As an employer, we would have to send an amount equal to your withholding for both trust funds as an additional contribution to your account.
A26: 17 - This amount is withheld from your pay and sent to the state government to go toward any state income tax you might owe at the end of the year.
A27: 19 - This amount is withheld from your pay and sent to the state government's DISABILITY INSURANCE FUND, often called WORKER'S COMPENSATION. Workers injured on the job, who are paying into this fund, can draw from it to help cover their expenses while they are unable to work.

Sheet Tax Rate Schedule
A1: 2017 Tax Rate Schedule for Single Taxpayers
A3: Taxable Income
A4: 0 | B4: 0.1 | C4: 0
A5: 9325 | B5: 0.15 | C5: 932.5
A6: 37951 | B6: 0.25 | C6: 5226.25
A7: 91901 | B7: 0.28 | C7: 18713.75
A8: 191651 | B8: 0.33 | C8: 46643.75
A9: 416701 | B9: 0.35 | C9: 120910.25

Sheet Freeware Agreement
A1: This workbook is distributed free of charge by classroomtools.com.
A3: You may make copies for colleagues, but are specifically prohibited from
B4: 1 - charging for such copies
B5: 2 - removing the classroomtools.com copyright line(s) from the original
B6: or copies you make
B7: 3 - modifying formulas, protected text, macros or the general look of
B8: the sheets that make up this workbook
A10: I have tested this workbook as thoroughly as possible. Nevertheless, as with
A11: all computer software, it is possible that anomolies could appear under
A12: circumstances found on your particular system. Should you see something that
A13: appears incorrect, please report it by e-mail to: BillChapman@classroomtools.com
A15: copyright © 1998-2018 classroomtools.com
A16: last modified: Tuesday, February 6, 2018
